fUSD/lending_fUSD_20250319
["ID","MTS","AMOUNT","RATE_DAILY","PERIOD"]
[356412956,1742421033360,-1143.3,0.00028688,2]
[356412957,1742421033369,-565.91634409,0.00028688,2]
[356412958,1742421033379,-1445.05,0.00028688,2]
[356412959,1742421033388,-500.0,0.00028688,2]
[356412960,1742421033398,-962.51,0.00028688,2]
[356412961,1742421033407,-500.0,0.00028688,2]
[356412962,1742421033416,-760.77,0.00028688,2]
[356412963,1742421033426,-500.0,0.00028688,2]
[356412964,1742421033435,-500.0,0.00028688,2]
[356412965,1742421033444,-826.33,0.00028688,2]
[356412966,1742421033454,-669.49,0.00028688,2]
[356412967,1742421033464,-500.0,0.00028688,2]
[356412968,1742421033473,-500.0,0.00028688,2]
[356412969,1742421033483,-500.0,0.00028688,2]
[356412970,1742421033492,-500.0,0.00028688,2]
[356412971,1742421033501,-500.0,0.00028688,2]
[356412972,1742421033510,-472.68464661,0.00028688,2]
[356412973,1742421033520,-573.44,0.00028688,2]
[356412974,1742421033529,-843.78,0.00028688,2]
[356412975,1742421033538,-649.94,0.00028688,2]
[356412976,1742421033547,-500.0,0.00028688,2]
[356412977,1742421033556,-654.94,0.00028688,2]
[356412978,1742421033566,-500.0,0.00028688,2]
[356412979,1742421033575,-500.0,0.00028688,2]
[356412980,1742421033584,-665.02,0.00028688,2]
[356412981,1742421033595,-449.90694309,0.00028688,2]
[356412982,1742421033624,-50.09305691,0.00028688,2]
[356412983,1742421033634,-1105.6,0.00028688,2]
[356412984,1742421033644,-500.0,0.00028688,2]
[356412985,1742421033654,-500.0,0.00028688,2]
[356412986,1742421033663,-500.0,0.00028688,2]
[356412987,1742421033673,-500.0,0.00028688,2]
[356412988,1742421033683,-509.43,0.00028688,2]
[356412989,1742421033692,-142.8448238,0.00028688,2]
[356412990,1742421033716,-475.8451762,0.00028688,2]
[356412991,1742421033726,-500.0,0.00028688,2]
[356412992,1742421033736,-673.27,0.00028688,2]
[356412993,1742421033746,-302.34373143,0.00028688,2]
[356412994,1742421033756,-500.0,0.00028688,2]
[356412995,1742421033766,-500.0,0.00028688,2]
[356412996,1742421033781,-890.17,0.00028688,2]
[356412997,1742421033797,-1611.14,0.00028688,2]
[356412998,1742421033807,-641.05683553,0.00028688,2]
[356413016,1742421040164,-522.0,0.00028688,2]
[356413017,1742421040389,-124.54316447,0.00028688,2]
[356413018,1742421040398,-503.68,0.00028688,2]
[356413019,1742421040408,-500.0,0.00028688,2]
[356413020,1742421040417,-552.77,0.00028688,2]
[356413021,1742421040426,-500.0,0.00028688,2]
[356413022,1742421040436,-574.52,0.00028688,2]
[356413023,1742421040446,-500.0,0.00028688,2]
[356413024,1742421040456,-710.69,0.00028688,2]
[356413025,1742421040465,-500.0,0.00028688,2]
[356413026,1742421040475,-500.0,0.00028688,2]
[356413027,1742421040484,-771.34,0.00028688,2]
[356413028,1742421040494,-500.0,0.00028688,2]
[356413029,1742421040503,-500.0,0.00028688,2]
[356413030,1742421040513,-73.52401833,0.00028688,2]
[356413041,1742421043064,-429.57891969,0.00028688,2]
[356413089,1742421046308,-473.12706198,0.00028688,2]
[356413090,1742421046319,-500.0,0.00028688,2]
[356413091,1742421046329,-500.0,0.00028688,2]
[356413092,1742421046339,-500.0,0.00028688,2]
[356413093,1742421046349,-598.92486358,0.00028688,2]
[356413094,1742421046359,-1560.22,0.00028688,2]
[356413095,1742421046369,-267.72807444,0.00028688,2]
[356413096,1742421046380,-316.46192556,0.00028688,2]
[356413097,1742421046389,-511.81827413,0.00028688,2]
[356413098,1742421046399,-553.74,0.00028688,2]
[356413099,1742421046408,-500.0,0.00028688,2]
[356413100,1742421046418,-635.31,0.00028688,2]
[356413101,1742421046427,-288.88980085,0.00028688,2]
[356413102,1742421046437,-1109.34595214,0.00028688,2]
[356413103,1742421046465,-1408.82174182,0.00028688,2]
[356413104,1742421046482,-347.14482896,0.00028688,2]
[356413105,1742421046495,-487.07824898,0.00028688,2]
[356413127,1742422232453,-2612.62149458,0.000228,5]
[356413128,1742422232466,-2937.37850542,0.000228,5]
[356413129,1742422232476,-218.67309924,0.000249,4]
[356413130,1742422232486,-187.90937378,0.00024999,8]
[356413131,1742422232497,-291.63362622,0.00024999,8]
[356413132,1742422232507,-8508.60332913,0.00025,30]
[356413133,1742422232518,-462.43,0.00025,30]
[356413134,1742422232530,-251.04828034,0.00025,30]
[356413135,1742422232547,-2646.05279871,0.00025,30]
[356413161,1742422238170,-1629.83238255,0.00025,30]
[356413163,1742422238287,-3485.30063338,0.00025,30]
[356413167,1742422238743,-424.538785,0.00025,30]
[356413171,1742422240554,-4194.92741325,0.00025,30]
[356413211,1742422244195,-12197.26637764,0.00025,30]
[356413212,1742422244205,-150.0,0.0002541,2]
[356413213,1742422244215,-151.032006,0.00025498,120]
[356413214,1742422244225,-200.95,0.00025532,2]
[356413215,1742422244235,-150.0,0.0002563,2]
[356413216,1742422244245,-218.67309915,0.00025762,4]
[356413217,1742422244254,-150.0,0.0002596,2]
[356413218,1742422244264,-2184.98,0.0002596,2]
[356413219,1742422244273,-218.67309915,0.00026624,4]
[356413220,1742422244283,-250.0,0.00026771,2]
[356413221,1742422244292,-151.032006,0.00026798,120]
[356413222,1742422244301,-1000.0,0.00026835,2]
[356413223,1742422244311,-220.43,0.00026849,2]
[356413224,1742422244320,-150.0,0.0002696,7]
[356413225,1742422244329,-218.67309915,0.00027486,4]
[356413226,1742422244339,-163.89,0.00027521,2]
[356413227,1742422244348,-200.95,0.00027796,2]
[356413228,1742422244358,-151.032006,0.00027798,120]
[356413229,1742422244367,-350.0,0.00027867,2]
[356413230,1742422244376,-183.65,0.00027926,30]
[356413231,1742422244386,-181.9203809,0.00028118,4]
[356413232,1742422244395,-150.0,0.00028201,2]
[356413233,1742422244405,-218.67309915,0.00028348,5]
[356413234,1742422244414,-151.032006,0.00028498,120]
[356413235,1742422244423,-1789.3828,0.00028578,2]
[356413236,1742422244433,-160.29697532,0.00028578,2]
[356413237,1742422244442,-22471.6901,0.00028588,2]
[356413238,1742422244452,-7659.22388221,0.00028588,2]
[356413239,1742422244463,-458.475,0.00028588,2]
[356413241,1742422246343,-500.0,0.00028588,2]
[356413278,1742423431552,-206.84,0.00025755,2]
[356413279,1742423431561,-242.62,0.00026831,120]
[356413280,1742423431571,-366.35,0.00026849,2]
[356413281,1742423431581,-101.73688426,0.00027281,2]
[356413282,1742423431593,-557.09,0.00027281,2]
[356413297,1742423437376,-268.1198985,0.00027281,2]
[356413299,1742423437388,-73.05321724,0.00027281,2]
[356413301,1742423437397,-500.0,0.00027567,3]
[356413303,1742423437406,-1000.0,0.00027683,2]
[356413304,1742423437415,-150.0,0.00027732,2]
[356413305,1742423437425,-168.34,0.0002774,30]
[356413306,1742423437434,-391.12479308,0.00027741,2]
[356413307,1742423437445,-50.98520692,0.00027741,2]
[356413308,1742423437455,-733.89,0.00027741,2]
[356413309,1742423437463,-160.29697532,0.00027898,2]
[356413310,1742423437473,-300.0,0.00027898,2]
[356413311,1742423437481,-2112.5347872,0.00027899,2]
[356413312,1742423437492,-5397.6240128,0.00027899,2]
[356413313,1742423437501,-383.634,0.000279,18]
[356413314,1742423437510,-182.22758277,0.000279,4]
[356413315,1742423437518,-415.83593187,0.00027988,12]
[356413316,1742423437527,-8318.93742559,0.00027988,12]
[356413317,1742423437546,-1092.76717894,0.00027988,12]
[356413318,1742423437556,-3675.94521427,0.00027988,12]
[356413319,1742423437567,-1016.71909291,0.00027988,12]
[356413320,1742423437596,-865.7599988,0.00027988,12]
[356413324,1742423439458,-21669.0,0.00027988,12]
[356413328,1742423442589,-1627.05487211,0.00027988,12]
[356413356,1742423445501,-282.78234949,0.00027988,12]
[356413357,1742423445757,-2131.59504103,0.00027988,12]
[356413358,1742423445773,-1000.0,0.00027988,12]
[356413359,1742423445793,-2107.0942039,0.00027988,12]
[356413379,1742424324418,3034.38566124,0.000214,2]
[356413380,1742424324440,866.97433876,0.000214,2]
[356413385,1742424603120,260.89142815,9.973e-05,2]
[356413403,1742424631841,-196.49,0.00025071,2]
[356413404,1742424631851,-150.0,0.00025102,2]
[356413405,1742424631860,-350.0,0.00025102,2]
[356413406,1742424631869,-193.87681956,0.00025132,2]
[356413407,1742424631878,-150.0,0.00025151,2]
[356413408,1742424631887,-150.0,0.00025258,2]
[356413409,1742424631895,-150.0,0.00025439,2]
[356413410,1742424631904,-151.032006,0.00025498,120]
[356413411,1742424631913,-150.0,0.00025585,2]
[356413412,1742424631922,-150.0,0.00025638,2]
[356413413,1742424631933,-150.0,0.00025924,2]
[356413414,1742424631941,-150.0,0.00026013,2]
[356413415,1742424631950,-150.0,0.00026071,2]
[356413416,1742424631959,-150.0,0.00026089,2]
[356413417,1742424631968,-150.0,0.00026099,2]
[356413418,1742424631977,-150.0,0.00026147,2]
[356413419,1742424631985,-150.0,0.00026156,2]
[356413420,1742424631994,-150.0,0.00026166,2]
[356413421,1742424632003,-27.33104163,0.00026227,2]
[356413422,1742424632029,-122.66895837,0.00026227,2]
[356413423,1742424632039,-151.032006,0.00026798,120]
[356413424,1742424632048,-197.17,0.00026849,2]
[356413425,1742424632057,-220.43,0.00026849,2]
[356413426,1742424632067,-503.69918483,0.00026902,2]
[356413427,1742424632079,-496.30081517,0.00026902,2]
[356413428,1742424632088,-150.0,0.00026972,2]
[356413429,1742424632098,-54.94089786,0.00026978,2]
[356413430,1742424632121,-95.05910214,0.00026978,2]
[356413431,1742424632131,-154.31,0.00027092,30]
[356413432,1742424632139,-150.0,0.00027112,2]
[356413433,1742424632148,-300.0,0.00027112,2]
[356413434,1742424632158,-150.0,0.00027194,2]
[356413435,1742424632167,-150.0,0.00027284,2]
[356413436,1742424632176,-150.0,0.00027284,2]
[356413437,1742424632185,-167.71084809,0.00027335,2]
[356413438,1742424632196,-28.77915191,0.00027335,2]
[356413439,1742424632205,-189.85738911,0.00027362,2]
[356413440,1742424632214,-150.0,0.00027449,2]
[356413441,1742424632223,-151.032006,0.00027498,120]
[356413442,1742424632232,-150.0,0.00027578,2]
[356413443,1742424632241,-350.0,0.00027578,2]
[356413444,1742424632250,-62.68526784,0.00027578,2]
[356413489,1742424637738,-287.31473216,0.00027578,2]
[356413490,1742424637747,-434.97717,0.0002762,40]
[356413491,1742424637757,-3.88219431,0.00027663,2]
[356413492,1742424637768,-146.11780569,0.00027663,2]
[356413493,1742424637778,-150.0,0.00027666,2]
[356413494,1742424637787,-1268.41532124,0.0002771,2]
[356413495,1742424637798,-374.02449532,0.0002771,2]
[356413496,1742424637810,-3158.72762586,0.0002771,2]
[356413497,1742424637820,-948.7537,0.000278,2]
[356413498,1742424637830,-150.0,0.00027819,2]
[356413499,1742424637840,-264.8733048,0.00027827,4]
[356413500,1742424637850,-150.0,0.00027874,2]
[356413501,1742424637859,-207.91796594,0.00027878,12]
[356413502,1742424637869,-36177.65501258,0.00027878,12]
[356413510,1742424640706,-4479.61444546,0.00027878,12]
[356413512,1742424640718,-720.335,0.00027878,12]
[356413513,1742424640729,-300.98544819,0.00027878,12]
[356413514,1742424640741,-672.11140001,0.00027878,12]
[356413528,1742424642857,-3207.97716013,0.00027878,12]
[356413555,1742424645747,-944.70006277,0.00027878,12]
[356413556,1742424645759,-637.42621562,0.00027878,12]
[356413557,1742424645800,-8637.83533401,0.00027878,12]
[356413558,1742424646018,-3530.06435158,0.00027878,12]
[356413559,1742424646033,-418.9592001,0.00027878,12]
[356413814,1742425831861,-176.84,0.00024912,2]
[356413815,1742425831871,-165.78,0.0002655,2]
[356413816,1742425831881,-150.0,0.00026627,2]
[356413817,1742425831891,-168.0,0.0002667,30]
[356413818,1742425831901,-193.17304674,0.00026671,2]
[356413819,1742425831911,-150.0,0.00026677,2]
[356413820,1742425831920,-1000.0,0.00026711,2]
[356413821,1742425831930,-2000.0,0.00026771,2]
[356413822,1742425831940,-2093.12,0.00026786,2]
[356413823,1742425831949,-151.75,0.00026814,2]
[356413824,1742425831959,-1284.64,0.00026819,120]
[356413825,1742425831968,-366.46,0.00026849,2]
[356413826,1742425831978,-728.56017542,0.000269,4]
[356413827,1742425831987,-614.26,0.00026931,120]
[356413828,1742425831997,-2751.0,0.00026936,2]
[356413829,1742425832006,-156.09,0.00026936,2]
[356413830,1742425832015,-193.17304674,0.00027175,2]
[356413831,1742425832025,-176.84,0.00027176,2]
[356413832,1742425832035,-223.3645,0.00027678,2]
[356413833,1742425832045,-313.6676,0.00027678,2]
[356413834,1742425832054,-1162.7386,0.00027678,2]
[356413835,1742425832063,-193.17304674,0.00027678,2]
[356413836,1742425832073,-1998.3977,0.00027678,2]
[356413837,1742425832083,-1000.0,0.00027679,2]
[356413838,1742425832092,-728.56017531,0.00027693,4]
[356413839,1742425832101,-10000.0,0.0002771,2]
[356413840,1742425832111,-1014.08147202,0.00027729,2]
[356413841,1742425832121,-350.0,0.00027744,2]
[356413842,1742425832130,-3302.4183133,0.00027768,2]
[356413843,1742425832139,-207.91796593,0.00027778,12]
[356413844,1742425832148,-343.96770859,0.00027778,2]
[356413845,1742425832158,-151.0,0.00027778,7]
[356413846,1742425832167,-151.0,0.00027778,30]
[356413848,1742425832177,-151.0,0.00027778,7]
[356413850,1742425832186,-241.746569,0.00027778,7]
[356413851,1742425832196,-151.0,0.00027778,7]
[356413852,1742425832205,-151.0,0.00027778,7]
[356413853,1742425832214,-151.0,0.00027778,7]
[356413854,1742425832223,-151.0,0.00027778,7]
[356413855,1742425832233,-151.0,0.00027778,7]
[356413856,1742425832242,-151.0,0.00027778,7]
[356413857,1742425832251,-151.0,0.00027778,7]
[356413858,1742425832261,-151.0,0.00027778,7]
[356413859,1742425832271,-151.0,0.00027778,7]
[356413860,1742425832280,-151.0,0.00027778,7]
[356413861,1742425832290,-151.0,0.00027778,7]
[356413862,1742425832299,-151.0,0.00027778,7]
[356413863,1742425832309,-164.828568,0.00027778,7]
[356413864,1742425832318,-164.828568,0.00027778,7]
[356413865,1742425832327,-188.966451,0.00027778,7]
[356413866,1742425832336,-333.564711,0.00027778,7]
[356413867,1742425832345,-422.855948,0.00027778,7]
[356413868,1742425832354,-333.564711,0.00027778,7]
[356413869,1742425832364,-422.855948,0.00027778,7]
[356413870,1742425832373,-151.7249,0.00027778,7]
[356413871,1742425832382,-54615.1254,0.00027778,2]
[356413872,1742425832391,-38169.6845,0.00027779,2]
[356413873,1742425832400,-151.0,0.00027779,7]
[356413874,1742425832409,-152.248455,0.00027779,7]
[356413875,1742425832418,-155.465419,0.00027779,7]
[356413876,1742425832427,-151.0,0.00027779,7]
[356413877,1742425832436,-151.0,0.00027779,7]
[356413878,1742425832444,-151.0,0.00027779,7]
[356413879,1742425832453,-193.84,0.00027779,7]
[356413880,1742425832463,-151.0,0.00027779,7]
[356413881,1742425832472,-151.0,0.00027779,7]
[356413882,1742425832481,-151.0,0.00027779,7]
[356413883,1742425832490,-151.0,0.00027779,7]
[356413884,1742425832499,-151.0,0.00027779,7]
[356413885,1742425832508,-164.828568,0.00027779,7]
[356413886,1742425832517,-164.828568,0.00027779,7]
[356413887,1742425832526,-333.564711,0.00027779,7]
[356413888,1742425832535,-422.855948,0.00027779,7]
[356413889,1742425832544,-333.564711,0.00027779,7]
[356413890,1742425832553,-422.855948,0.00027779,7]
[356413891,1742425832562,-159.669509,0.00027779,7]
[356413892,1742425832571,-198.6549786,0.00027827,4]
[356413893,1742425832579,-160.29697532,0.00027833,2]
[356413894,1742425832589,-1014.03,0.0002785,2]
[356413895,1742425832598,-362.48097,0.00027874,40]
[356413896,1742425832608,-558.03,0.00027877,2]
[356413897,1742425832618,-594.542,0.00027878,18]
[356413898,1742425832627,-151.0,0.00027878,7]
[356413899,1742425832637,-151.0,0.00027878,7]
[356413900,1742425832646,-151.0,0.00027878,7]
[356413901,1742425832655,-151.0,0.00027878,7]
[356413902,1742425832664,-151.0,0.00027878,7]
[356413903,1742425832673,-168.37846387,0.00027878,3]
[356413904,1742425832682,-151.0,0.00027878,7]
[356413905,1742425832691,-864.36,0.00027878,2]
[356413906,1742425832701,-1044.48,0.00027878,2]
[356413907,1742425832711,-500.0,0.00027878,2]
[356413908,1742425832721,-1015.84,0.00027878,2]
[356413909,1742425832731,-831.06,0.00027878,2]
[356413910,1742425832741,-509.37,0.00027878,2]
[356413911,1742425832751,-753.64,0.00027878,2]
[356413912,1742425832764,-1260.94,0.00027878,2]
[356413913,1742425832774,-1095.66,0.00027878,2]
[356413914,1742425832783,-500.0,0.00027878,2]
[356413915,1742425832793,-500.0,0.00027878,2]
[356413916,1742425832802,-500.0,0.00027878,2]
[356413917,1742425832812,-791.9,0.00027878,2]
[356413918,1742425832821,-570.84,0.00027878,2]
[356413919,1742425832831,-627.65,0.00027878,2]
[356413920,1742425832843,-668.8,0.00027878,2]
[356413921,1742425832853,-1059.54,0.00027878,2]
[356413922,1742425832864,-500.0,0.00027878,2]
[356413923,1742425832873,-673.27,0.00027878,2]
[356413924,1742425832882,-1281.49,0.00027878,2]
[356413925,1742425832891,-757.3,0.00027878,2]
[356413926,1742425832901,-550.58,0.00027878,2]
[356413927,1742425832911,-500.0,0.00027878,2]
[356413928,1742425832921,-935.55,0.00027878,2]
[356413929,1742425832931,-500.0,0.00027878,2]
[356413930,1742425832941,-500.0,0.00027878,2]
[356413931,1742425832950,-500.0,0.00027878,2]
[356413932,1742425832959,-500.0,0.00027878,2]
[356413933,1742425832969,-151.0,0.00027879,7]
[356413934,1742425833253,-269.0,0.00027879,7]
[356413935,1742425833263,-171.393905,0.00027879,7]
[356413936,1742425833272,-151.0,0.00027879,7]
[356413937,1742425833283,-151.0,0.00027879,7]
[356413938,1742425833292,-235.679387,0.00027879,7]
[356413939,1742425833302,-151.0,0.00027879,7]
[356413940,1742425833311,-151.0,0.00027879,7]
[356413941,1742425833320,-151.0,0.00027879,7]
[356413942,1742425833329,-198.96367,0.00027879,7]
[356413943,1742425833339,-205.812376,0.00027879,7]
[356413944,1742425833348,-585.69,0.00027879,2]
[356413945,1742425833358,-500.0,0.00027879,2]
[356413946,1742425833367,-1157.56,0.00027879,2]
[356413947,1742425833376,-561.77,0.00027879,2]
[356413948,1742425833385,-81.95072299,0.00027879,2]
[356413949,1742425833398,-314.49158686,0.00027879,2]
[356413950,1742425833410,-390.36769015,0.00027879,2]
[356413951,1742425833419,-1175.35,0.00027879,2]
[356413952,1742425833429,-4104.41,0.00027879,2]
[356413953,1742425833439,-979.162136,0.00027879,2]
[356413954,1742425833448,-500.0,0.00027879,2]
[356413955,1742425833459,-1464.37,0.00027879,2]
[356413956,1742425833469,-159.862839,0.00027879,2]
[356413957,1742425833478,-151.886926,0.00027879,2]
[356413958,1742425833488,-856.17,0.00027879,2]
[356413959,1742425833497,-151.0,0.00027879,7]
[356413960,1742425833507,-151.0,0.00027879,7]
[356413961,1742425833516,-151.0,0.00027879,7]
[356413962,1742425833526,-151.0,0.00027879,7]
[356413963,1742425833536,-1249.24,0.00027879,2]
[356413964,1742425833546,-151.0,0.00027879,7]
[356413965,1742425833556,-151.0,0.00027879,7]
[356413966,1742425833566,-151.0,0.00027879,7]
[356413967,1742425833575,-85.86000112,0.00027879,7]
[356413968,1742425833590,-102.51230288,0.00027879,7]
[356413969,1742425833598,-291.039492,0.00027879,7]
[356413970,1742425833607,-276.65889505,0.00027879,2]
[356413971,1742425833618,-578.0878976,0.00027879,2]
[356413972,1742425833629,-126.86320735,0.00027879,2]
[356413973,1742425833639,-151.0,0.00027879,7]
[356413974,1742425833648,-151.0,0.00027879,7]
[356413975,1742425833658,-11.64950816,0.00027879,7]
[356413976,1742425833669,-139.35049184,0.00027879,7]
[356413977,1742425833680,-276.97273,0.00027879,7]
[356413978,1742425833689,-534.72150204,0.00027879,2]
[356413979,1742425833699,-151.0,0.00027879,7]
[356413980,1742425833710,-233.503777,0.00027879,7]
[356413981,1742425833720,-928.22,0.00027879,2]
[356413982,1742425833729,-430.96403848,0.00027879,2]
[356413983,1742425833742,-439.68596152,0.00027879,2]
[356413984,1742425833752,-59.19548416,0.00027879,2]
[356413985,1742425833776,-387.13222533,0.00027879,2]
[356413986,1742425833792,-747.86745951,0.00027879,2]
[356413987,1742425833803,-1160.96,0.00027879,2]
[356413988,1742425833813,-500.0,0.00027879,2]
[356413989,1742425833824,-1200.05,0.00027879,2]
[356413990,1742425833834,-1126.16,0.00027879,2]
[356413991,1742425833845,-164.828568,0.00027879,7]
[356413992,1742425833855,-164.828568,0.00027879,7]
[356413993,1742425833865,-164.828568,0.00027879,7]
[356413994,1742425833875,-164.828568,0.00027879,7]
[356413995,1742425833884,-164.828568,0.00027879,7]
[356413996,1742425833894,-164.828568,0.00027879,7]
[356413997,1742425833903,-164.828568,0.00027879,7]
[356413998,1742425833913,-164.828568,0.00027879,7]
[356413999,1742425833923,-164.828568,0.00027879,7]
[356414000,1742425833933,-164.828568,0.00027879,7]
[356414001,1742425833942,-132.30431168,0.00027879,2]
[356414002,1742425833954,-802.28568832,0.00027879,2]
[356414003,1742425833963,-648.41716463,0.00027879,2]
[356414004,1742425833975,-50.51283537,0.00027879,2]
[356414005,1742425833984,-221.48716463,0.00027879,2]
[356414006,1742425834001,-749.02283537,0.00027879,2]
[356414007,1742425834010,-500.0,0.00027879,2]
[356414008,1742425834020,-333.564711,0.00027879,7]
[356414009,1742425834029,-333.564711,0.00027879,7]
[356414010,1742425834043,-333.564711,0.00027879,7]
[356414011,1742425834052,-333.564711,0.00027879,7]
[356414012,1742425834063,-295.26309621,0.00027879,7]
[356414013,1742425834075,-38.30161479,0.00027879,7]
[356414014,1742425834084,-333.564711,0.00027879,7]
[356414015,1742425834094,-183.19817421,0.00027879,7]
[356414016,1742425834113,-239.65777379,0.00027879,7]
[356414017,1742425834123,-422.855948,0.00027879,7]
[356414018,1742425834133,-422.855948,0.00027879,7]
[356414019,1742425834142,-422.855948,0.00027879,7]
[356414020,1742425834152,-333.564711,0.00027879,7]
[356414021,1742425834161,-422.855948,0.00027879,7]
[356414022,1742425834171,-211.23719921,0.00027879,7]
[356414029,1742425837780,-8658.20472306,0.00027778,12]
[356414030,1742425837837,-90727.80920297,0.00027778,12]
[356414031,1742425837848,-500.0,0.00027877,2]
[356414032,1742425837858,-122.32751179,0.00027879,7]
[356414033,1742425837867,-333.564711,0.00027879,7]
[356414034,1742425837876,-333.564711,0.00027879,7]
[356414035,1742425837886,-333.564711,0.00027879,7]
[356414036,1742425837895,-333.564711,0.00027879,7]
[356414037,1742425837905,-422.855948,0.00027879,7]
[356414038,1742425837915,-422.855948,0.00027879,7]
[356414039,1742425837924,-422.855948,0.00027879,7]
[356414040,1742425837936,-924.67,0.00027879,2]
[356414041,1742425837949,-422.855948,0.00027879,7]
[356414042,1742425837959,-422.855948,0.00027879,7]
[356414043,1742425837969,-500.0,0.00027879,2]
[356414044,1742425837979,-684.93,0.00027879,2]
[356414045,1742425837988,-582.18,0.00027879,2]
[356414046,1742425837997,-585.45,0.00027879,2]
[356414047,1742425838007,-500.0,0.00027879,2]
[356414048,1742425838016,-1043.48,0.00027879,2]
[356414049,1742425838026,-605.21,0.00027879,2]
[356414050,1742425838035,-500.0,0.00027879,2]
[356414051,1742425838046,-2240.27,0.00027879,2]
[356414052,1742425838056,-1620.04,0.00027879,2]
[356414053,1742425838065,-1609.77,0.00027879,2]
[356414054,1742425838075,-1577.13,0.00027879,2]
[356414055,1742425838084,-594.7,0.00027879,2]
[356414056,1742425838093,-1429.7,0.00027879,2]
[356414057,1742425838103,-5706.5085,0.00027879,2]
[356414058,1742425838112,-11258.9935,0.00027879,2]
[356414059,1742425838122,-1611.85628318,0.00027882,2]
[356414060,1742425838131,-353.3732,0.00027885,2]
[356414061,1742425838140,-179.91550213,0.00027885,2]
[356414062,1742425838150,-1434.0,0.000279,2]
[356414063,1742425838159,-512.31615656,0.00027923,2]
[356414064,1742425838171,-1517.50982453,0.00027923,2]
[356414065,1742425838182,-3742.70217563,0.00027923,2]
[356414066,1742425838197,-742.12448179,0.00027923,2]
[356414067,1742425838208,-280.407,0.00027923,2]
[356414069,1742425838219,-14773.85922899,0.00027923,2]
[356414070,1742425838228,-158.8,0.00027924,2]
[356414071,1742425838238,-488.40499541,0.00027932,2]
[356414072,1742425838248,-278.73631784,0.00027932,2]
[356414073,1742425838258,-174.27540444,0.00027932,2]
[356414074,1742425838267,-578.5802255,0.00027932,2]
[356414075,1742425838277,-558.03,0.00027932,2]
[356414076,1742425838287,-500.0,0.00027932,2]
[356414077,1742425838297,-1157.56,0.00027933,2]
[356414078,1742425838307,-561.77,0.00027933,2]
[356414079,1742425838317,-1175.35,0.00027933,2]
[356414080,1742425838326,-4104.41,0.00027933,2]
[356414081,1742425838335,-979.162136,0.00027933,2]
[356414082,1742425838344,-1464.37,0.00027933,2]
[356414083,1742425838354,-856.17,0.00027933,2]
[356414084,1742425838364,-1249.24,0.00027933,2]
[356414085,1742425838374,-981.61,0.00027933,2]
[356414086,1742425838383,-928.22,0.00027933,2]
[356414087,1742425838393,-870.65,0.00027933,2]
[356414088,1742425838402,-1194.195169,0.00027933,2]
[356414089,1742425838411,-864.36,0.00027933,2]
[356414090,1742425838421,-1160.96,0.00027933,2]
[356414091,1742425838431,-500.0,0.00027933,2]
[356414092,1742425838440,-13.10144264,0.00027933,2]
[356414093,1742425838452,-1031.37855736,0.00027933,2]
[356414094,1742425838462,-827.47297226,0.00027933,2]
[356414095,1742425838482,-372.57702774,0.00027933,2]
[356414096,1742425838491,-52.30605764,0.00027933,2]
[356414097,1742425838503,-1073.85394236,0.00027933,2]
[356414098,1742425838513,-164.828568,0.00027933,7]
[356414106,1742425838773,-164.828568,0.00027933,7]
[356414107,1742425838784,-500.0,0.00027933,2]
[356414108,1742425838794,-164.828568,0.00027933,7]
[356414109,1742425838804,-164.828568,0.00027933,7]